bitfinex/quotes_BTCUSD_20250616
["timestamp","ask_amount","ask_price","bid_price","bid_amount"]
[1750037457767,0.34047267,105220.0,105200.0,0.0305]
[1750037457768,2.744688,105210.0,105200.0,0.0305]
[1750037459217,0.001,105210.0,105200.0,0.0315]
[1750037462143,0.001,105210.0,105200.0,1.01878933]
[1750037462349,0.001,105210.0,105200.0,0.53599981]
[1750037462558,0.001,105210.0,105200.0,0.74523981]
[1750037463224,0.001,105210.0,105200.0,0.53599981]
[1750037463657,0.00047267,105220.0,105210.0,0.0303]
[1750037464326,0.00047267,105220.0,105210.0,0.05876938]
[1750037464773,0.00047267,105220.0,105210.0,0.24149285]
[1750037464987,0.00147267,105220.0,105210.0,0.17455199]
[1750037465203,0.00247267,105220.0,105210.0,0.18155199]
[1750037467409,0.00247267,105220.0,105210.0,0.34768787]
[1750037467622,0.00247267,105220.0,105210.0,0.3547792]
[1750037467828,0.00247267,105220.0,105210.0,0.38323052]
[1750037468037,0.00247267,105220.0,105210.0,0.68203052]
[1750037468247,0.00247267,105220.0,105210.0,0.77817974]
[1750037469086,0.00247267,105220.0,105210.0,1.15169362]
[1750037469923,0.00247267,105220.0,105210.0,0.77817974]
[1750037470566,0.00247267,105220.0,105210.0,0.82341974]
[1750037470808,0.00247267,105220.0,105210.0,0.72727052]
[1750037471251,0.00247267,105220.0,105210.0,1.1007844]
[1750037472134,0.00247267,105220.0,105210.0,0.40748791]
[1750037472352,0.00247267,105220.0,105210.0,0.50506]
[1750037473003,0.00247267,105220.0,105210.0,0.3411]
[1750037473675,0.00247267,105220.0,105210.0,0.50518]
[1750037475017,0.00247267,105220.0,105210.0,0.3411]
[1750037475197,0.00247267,105220.0,105210.0,0.50518]
[1750037475435,0.00247267,105220.0,105210.0,0.3411]
[1750037475646,0.00247267,105220.0,105210.0,0.50518]
[1750037476288,0.33997071,105230.0,105210.0,0.50518]
[1750037476505,2.744688,105220.0,105210.0,0.50526982]
[1750037477176,2.744688,105220.0,105210.0,0.50026982]
[1750037477616,2.744688,105220.0,105210.0,0.50426982]
[1750037478261,2.744688,105220.0,105210.0,0.50430982]
[1750037478676,2.53691061,105220.0,105210.0,0.50430982]
[1750037478893,0.33997071,105230.0,105210.0,0.50430982]
[1750037479111,2.536911,105220.0,105210.0,0.50430982]
[1750037479316,2.536911,105220.0,105210.0,0.50018982]
[1750037479974,2.536911,105220.0,105210.0,0.33618982]
[1750037480191,2.536911,105220.0,105210.0,0.49114982]
[1750037480436,0.001,105220.0,105210.0,0.49114982]
[1750037483249,0.001,105220.0,105210.0,0.56104993]
[1750037484003,0.001,105220.0,105210.0,0.50754982]
[1750037484697,0.001,105220.0,105210.0,0.60379158]
[1750037485322,0.001,105220.0,105210.0,0.6322429]
[1750037487409,0.001,105220.0,105210.0,0.64678375]
[1750037487849,0.001,105220.0,105210.0,0.4682829]
[1750037488066,0.001,105220.0,105210.0,0.6322029]
[1750037488697,0.001,105220.0,105210.0,0.47776817]
[1750037488905,0.001,105220.0,105210.0,0.67023867]
[1750037490240,0.001,105220.0,105210.0,0.67024433]
[1750037490885,0.001,105220.0,105210.0,0.57388257]
[1750037493694,0.001,105220.0,105210.0,0.41004257]
[1750037493905,0.001,105220.0,105210.0,0.57376257]
[1750037496502,0.001,105220.0,105210.0,0.64136889]
[1750037498289,0.001,105220.0,105210.0,0.57376257]
[1750037498733,0.001,105220.0,105210.0,0.5737706]
[1750037500207,2.536911,105230.0,105220.0,0.0158]
[1750037501691,2.93501228,105230.0,105220.0,0.0198]
[1750037501908,2.93501228,105230.0,105220.0,0.004]
[1750037502841,3.38945404,105230.0,105220.0,0.009]
[1750037503261,3.39895631,105230.0,105220.0,0.009]
[1750037503689,2.536911,105220.0,105210.0,0.16376982]
[1750037503908,2.93501228,105220.0,105210.0,0.16368982]
[1750037504558,2.93501228,105220.0,105210.0,8.982e-05]
[1750037504559,3.27501228,105220.0,105210.0,8.982e-05]
[1750037504768,3.29121228,105220.0,105210.0,8.982e-05]
[1750037505018,3.29121228,105220.0,105210.0,0.00408982]
[1750037505242,3.38745404,105220.0,105210.0,0.00408982]
[1750037505464,3.3984573,105220.0,105210.0,0.00408982]
[1750037505679,3.40796083,105220.0,105210.0,0.00408982]
[1750037506531,3.40896074,105220.0,105210.0,0.00908982]
[1750037506741,3.39945721,105220.0,105210.0,0.00908982]
[1750037506946,3.39845721,105220.0,105210.0,0.00408982]
[1750037507158,3.39845721,105220.0,105210.0,0.00108982]
[1750037507370,3.39945721,105220.0,105210.0,0.00108982]
[1750037507589,3.40896065,105220.0,105210.0,0.00208982]
[1750037507988,3.40896056,105220.0,105210.0,0.00108982]
[1750037508197,3.49698711,105220.0,105210.0,0.00208982]
[1750037508406,3.40896047,105220.0,105210.0,0.00208982]
[1750037509046,3.43747124,105220.0,105210.0,0.00208982]
[1750037509255,3.42796807,105220.0,105210.0,0.00208982]
[1750037509667,3.59152798,105220.0,105210.0,0.00208982]
[1750037510106,3.1934267,105220.0,105210.0,0.00208982]
[1750037510317,3.17441946,105220.0,105210.0,0.00208982]
[1750037510528,3.59152798,105220.0,105210.0,0.00208982]
[1750037510746,3.60103187,105220.0,105210.0,0.00208982]
[1750037510950,3.18392299,105220.0,105210.0,0.00208982]
[1750037511162,3.58202427,105220.0,105210.0,0.00208982]
[1750037511374,3.59152807,105220.0,105210.0,0.00208982]
[1750037512874,3.58865771,105220.0,105210.0,0.00208982]
[1750037513296,0.36851275,105210.0,105190.0,0.01566378]
[1750037513501,3.03125404,105200.0,105190.0,0.00063645]
[1750037513708,3.04755404,105200.0,105190.0,0.00063645]
[1750037513916,3.06656409,105200.0,105190.0,0.00063645]
[1750037514146,3.07606952,105200.0,105190.0,0.00063645]
[1750037514370,3.09628528,105200.0,105190.0,0.00063645]
[1750037514587,3.09628528,105200.0,105180.0,0.004]
[1750037514588,3.29001228,105190.0,105180.0,0.004]
[1750037514799,2.99765855,105190.0,105180.0,0.004]
[1750037515049,3.38625404,105190.0,105180.0,0.004]
[1750037515696,2.97315276,105190.0,105180.0,0.004]
[1750037515919,2.97315276,105190.0,105180.0,0.0355]
[1750037515920,2.876911,105190.0,105180.0,0.0355]
[1750037516990,2.877911,105190.0,105180.0,0.0385]
[1750037517620,2.877911,105190.0,105180.0,0.0395]
[1750037518671,3.27601228,105190.0,105180.0,0.0395]
[1750037520666,2.877911,105190.0,105180.0,0.0395]
[1750037521318,3.27601228,105190.0,105180.0,0.0395]
[1750037522367,3.37225404,105190.0,105180.0,0.0238]
[1750037522596,3.37225404,105190.0,105180.0,0.008]
[1750037522804,3.40646607,105190.0,105180.0,0.008]
[1750037523210,3.40646598,105190.0,105180.0,0.008]
[1750037523436,3.60092893,105190.0,105180.0,0.008]
[1750037524022,3.60092884,105190.0,105180.0,0.008]
[1750037524227,3.58191699,105190.0,105180.0,0.008]
[1750037524927,3.59142296,105190.0,105180.0,0.008]
[1750037525164,3.59142287,105190.0,105180.0,0.008]
[1750037526000,3.58187699,105190.0,105180.0,0.008]
[1750037526206,3.19328168,105190.0,105180.0,0.008]
[1750037526412,3.59138296,105190.0,105180.0,0.008]
[1750037526629,3.58187699,105190.0,105180.0,0.008]
[1750037528447,3.59138287,105190.0,105180.0,0.008]
[1750037529074,3.20278756,105190.0,105180.0,0.008]
[1750037529303,3.60088902,105190.0,105180.0,0.008]
[1750037529517,3.59138287,105190.0,105180.0,0.008]
[1750037529734,3.60088893,105190.0,105180.0,0.008]
[1750037530350,3.59138287,105190.0,105180.0,0.008]
[1750037530575,3.57146598,105190.0,105180.0,0.008]
[1750037532053,3.58097231,105190.0,105180.0,0.008]
[1750037532260,3.55610598,105190.0,105180.0,0.008]
[1750037532464,3.56561222,105190.0,105180.0,0.008]
[1750037532644,3.56561213,105190.0,105180.0,0.008]
[1750037533320,2.97415276,105190.0,105180.0,0.008]
[1750037533538,2.97415276,105190.0,105180.0,0.0396]
[1750037533751,2.877911,105190.0,105180.0,0.0396]
[1750037535538,3.27601228,105190.0,105180.0,0.0396]
[1750037535749,2.877911,105190.0,105180.0,0.0396]
[1750037536790,0.001,105190.0,105180.0,0.0396]
[1750037537453,0.001,105190.0,105180.0,0.06802196]
[1750037537672,0.34047272,105200.0,105180.0,0.20071861]
[1750037537902,0.34047272,105200.0,105190.0,0.0308]
[1750037538111,0.00047272,105200.0,105190.0,0.0308]
[1750037538335,0.00047272,105200.0,105190.0,0.09721798]
[1750037538554,0.00047272,105200.0,105190.0,0.62235933]
[1750037538763,0.00047272,105200.0,105190.0,0.59150159]
[1750037538972,0.00047272,105200.0,105190.0,0.19340031]
[1750037539187,0.00047272,105200.0,105190.0,0.19677666]
[1750037539398,0.00047272,105200.0,105190.0,0.59250159]
[1750037539814,0.33823128,105210.0,105200.0,0.0313]
[1750037540019,0.33823128,105210.0,105200.0,0.03134727]
[1750037540668,2.536911,105220.0,105200.0,4.727e-05]
[1750037540892,2.343265,105220.0,105210.0,0.0316]
[1750037541114,2.343265,105220.0,105210.0,0.0321]
[1750037541749,2.683265,105220.0,105210.0,0.0321]
[1750037541952,0.34,105220.0,105210.0,0.0321]
[1750037542374,0.34,105220.0,105210.0,0.0351]
[1750037542577,3.24143742,105220.0,105210.0,0.003]
[1750037542789,3.25094095,105220.0,105210.0,0.003]
[1750037542975,3.24143742,105220.0,105210.0,0.003]
[1750037543225,3.25094095,105220.0,105210.0,0.003]
[1750037543480,3.24143742,105220.0,105210.0,0.003]
[1750037543902,3.17860804,105220.0,105210.0,0.0387]
[1750037544529,3.17760804,105220.0,105210.0,0.0337]
[1750037544760,3.17760804,105220.0,105210.0,0.0307]
[1750037544975,3.17860804,105220.0,105210.0,0.0337]
[1750037546469,3.1881113,105220.0,105210.0,0.0187]
[1750037546919,3.23654122,105220.0,105210.0,0.003]
[1750037547130,3.26164493,105220.0,105210.0,0.003]
[1750037547340,3.27114882,105220.0,105210.0,0.003]
[1750037547751,3.26614223,105220.0,105210.0,0.003]
[1750037548410,3.25663834,105220.0,105210.0,0.003]
[1750037548644,3.26614214,105220.0,105210.0,0.003]
[1750037548858,3.21771168,105220.0,105210.0,0.003]
[1750037549500,3.22721539,105220.0,105210.0,0.003]
[1750037549921,2.82911411,105220.0,105210.0,0.003]
[1750037550117,3.22721539,105220.0,105210.0,0.003]
[1750037550522,3.21771159,105220.0,105210.0,0.003]
[1750037551158,3.17360145,105220.0,105210.0,0.018]
[1750037551363,3.17360145,105220.0,105210.0,0.0336]
[1750037551560,3.18310462,105220.0,105210.0,0.0336]
[1750037551763,3.18310462,105220.0,105210.0,0.018]
[1750037551962,3.22771539,105220.0,105210.0,0.003]
[1750037552167,3.25713825,105220.0,105210.0,0.003]
[1750037552445,3.22484716,105220.0,105210.0,0.003]
[1750037552624,3.22484711,105220.0,105210.0,0.003]
[1750037552846,3.22771512,105220.0,105210.0,0.003]
[1750037553056,3.31574167,105220.0,105210.0,0.003]
[1750037553234,3.22771512,105220.0,105210.0,0.003]
[1750037553393,3.23435081,105220.0,105210.0,0.003]
[1750037553623,3.23435082,105220.0,105210.0,0.003]
[1750037553834,3.22771512,105220.0,105210.0,0.003]
[1750037554017,3.23435082,105220.0,105210.0,0.003]
[1750037554210,3.23721901,105220.0,105210.0,0.003]
[1750037554390,3.22771593,105220.0,105210.0,0.003]
[1750037554633,3.22484771,105220.0,105210.0,0.003]
[1750037554855,3.20218845,105220.0,105210.0,0.0188]
[1750037555065,3.20218845,105220.0,105210.0,0.0343]
[1750037555476,3.20218845,105220.0,105210.0,0.03045]
[1750037556804,3.17360145,105220.0,105210.0,0.03045]
[1750037559240,3.07735969,105220.0,105210.0,0.03045]
[1750037559629,3.16538624,105220.0,105210.0,0.03045]
[1750037559865,3.07735969,105220.0,105210.0,0.03045]
[1750037563810,2.67925841,105220.0,105210.0,0.03045]
[1750037564002,0.001,105220.0,105210.0,0.42855128]
[1750037564230,0.001,105220.0,105210.0,0.553215]
[1750037564432,0.001,105220.0,105210.0,0.64221489]
[1750037564647,0.001,105220.0,105210.0,0.24411361]
[1750037564904,0.001,105220.0,105210.0,0.54291361]
[1750037565512,0.001,105220.0,105210.0,0.5808502]
[1750037565763,0.34,105230.0,105220.0,0.032]
[1750037566434,0.34,105230.0,105220.0,0.09054002]
[1750037566981,0.34,105230.0,105220.0,0.032]
[1750037567178,0.341,105230.0,105220.0,0.035]
[1750037567968,0.341,105230.0,105220.0,0.037]
[1750037571369,0.341,105230.0,105220.0,0.3358]
[1750037571612,0.73910128,105230.0,105220.0,0.3358]
[1750037575879,0.341,105230.0,105220.0,0.3886622]
[1750037577458,0.341,105230.0,105220.0,0.0898622]
[1750037579053,0.001,105230.0,105220.0,0.037]
[1750037582474,0.001,105230.0,105220.0,0.43510128]
[1750037582655,0.001,105230.0,105220.0,0.83014304]
[1750037582900,0.001,105230.0,105220.0,0.858565]
[1750037583817,0.001,105230.0,105220.0,0.87310585]
[1750037584069,0.001,105230.0,105220.0,1.00719166]
[1750037584541,2.343265,105250.0,105230.0,0.0315]
[1750037584801,2.343265,105250.0,105240.0,0.0315]
[1750037585262,2.343265,105260.0,105240.0,0.4943]
[1750037585476,2.35302627,105260.0,105250.0,0.0315]
[1750037586731,2.75112755,105260.0,105250.0,0.0315]
[1750037587146,2.75212755,105260.0,105250.0,0.0315]
[1750037587629,2.75212755,105260.0,105250.0,0.08093]
[1750037587630,0.01076127,105260.0,105250.0,0.08093]
[1750037587837,0.001,105260.0,105250.0,0.37973]
[1750037588267,0.01079431,105260.0,105250.0,0.49422]
[1750037588477,0.005,105260.0,105250.0,0.49522]
[1750037589224,0.39810128,105270.0,105260.0,0.0303]
[1750037589484,2.74136628,105270.0,105260.0,0.0303]
[1750037589930,2.74136628,105270.0,105260.0,0.0151]
[1750037590325,2.74136628,105270.0,105260.0,0.0311]
[1750037591632,2.75393209,105270.0,105260.0,0.0321]
[1750037591848,2.35583081,105270.0,105260.0,0.0321]
[1750037592050,2.75393209,105270.0,105260.0,0.0321]
[1750037592471,2.76278757,105270.0,105260.0,0.0321]
[1750037592687,2.75393209,105270.0,105260.0,0.0321]
[1750037592909,0.35256581,105270.0,105260.0,0.081586]
[1750037593541,0.343,105270.0,105260.0,0.081586]
[1750037593960,0.343,105270.0,105260.0,0.245386]
[1750037594207,0.003,105270.0,105260.0,0.544186]
[1750037594440,0.01269207,105270.0,105260.0,0.544186]
[1750037594645,0.003,105270.0,105260.0,0.544186]
[1750037594854,0.003,105270.0,105260.0,0.4947]
[1750037598350,0.00951719,105280.0,105260.0,0.95694304]
[1750037598566,0.00951719,105280.0,105270.0,0.033]
[1750037598782,0.76677928,105290.0,105280.0,0.033]
[1750037598972,0.02876792,105290.0,105280.0,0.033]
[1750037599245,0.4268692,105290.0,105280.0,0.033]
[1750037600103,0.4268692,105290.0,105280.0,0.0165]
[1750037600971,0.4268692,105290.0,105280.0,0.05216]
[1750037601819,0.4298692,105290.0,105280.0,0.05316]
[1750037602000,0.43974545,105290.0,105280.0,0.05316]
[1750037602238,0.43974545,105290.0,105280.0,0.0336]
[1750037602664,0.41106745,105290.0,105280.0,0.0336]
[1750037604838,0.01296617,105290.0,105280.0,0.0336]
[1750037605050,0.75106745,105290.0,105280.0,0.0336]
[1750037606331,0.35296617,105290.0,105280.0,0.0336]
[1750037606539,0.34308992,105290.0,105280.0,0.0832]
[1750037606981,0.34308992,105290.0,105280.0,0.382]
[1750037607399,0.34308992,105290.0,105280.0,0.47824176]
[1750037608027,0.34308992,105290.0,105280.0,0.42764176]
[1750037608028,0.34008992,105290.0,105280.0,0.42764176]
[1750037608248,0.34008992,105290.0,105280.0,0.59112176]
[1750037608450,0.34108992,105290.0,105280.0,0.59212176]
[1750037608657,0.34108992,105290.0,105280.0,0.59312176]
[1750037608864,0.00108992,105290.0,105280.0,0.59312176]
[1750037609896,0.00108992,105290.0,105280.0,0.65978734]
[1750037612934,0.00108992,105290.0,105280.0,0.42964176]
[1750037613162,0.00108992,105290.0,105280.0,0.59288176]
[1750037615332,0.00108992,105290.0,105280.0,0.62133577]
[1750037616382,0.00108992,105290.0,105280.0,0.59288176]
[1750037616586,0.00108992,105290.0,105280.0,0.62133577]
[1750037617691,0.00108992,105290.0,105280.0,0.69177101]
[1750037619565,0.00108992,105290.0,105280.0,0.7297076]
[1750037620252,0.00108992,105290.0,105280.0,0.71092282]
[1750037620493,0.00108992,105290.0,105280.0,1.12356495]
[1750037620716,0.00108992,105290.0,105280.0,1.14260897]
[1750037621156,0.00108992,105290.0,105280.0,1.16160584]
[1750037621365,0.00108992,105290.0,105280.0,1.15110745]
[1750037621580,8.992e-05,105290.0,105280.0,1.15010745]
[1750037621791,8.992e-05,105290.0,105280.0,1.14360897]
[1750037622008,0.00108992,105290.0,105280.0,1.14560897]
[1750037622222,0.00108992,105290.0,105280.0,0.74750769]
[1750037622451,0.00108992,105290.0,105280.0,1.14560897]
[1750037622882,0.00108992,105290.0,105280.0,1.29759445]
[1750037623302,0.00108992,105290.0,105280.0,1.37363539]
[1750037623510,0.00108992,105290.0,105280.0,1.29759445]
[1750037623746,0.00108992,105290.0,105280.0,1.27859796]
[1750037623952,0.00108992,105290.0,105280.0,1.28509625]
[1750037624164,0.00108992,105290.0,105280.0,1.29259445]
[1750037624370,0.00108992,105290.0,105280.0,1.28709625]
[1750037624371,8.992e-05,105290.0,105280.0,1.28709625]
[1750037624580,0.00108992,105290.0,105280.0,1.37563521]
[1750037624795,0.00108992,105290.0,105280.0,0.96803591]
[1750037625035,0.00108992,105290.0,105280.0,1.38513323]
[1750037625243,0.00108992,105290.0,105280.0,1.36613719]
[1750037626138,0.00108992,105290.0,105280.0,1.37563539]
[1750037626357,0.00108992,105290.0,105280.0,1.3851335]
[1750037626634,0.00108992,105290.0,105280.0,1.39463152]
[1750037627038,0.00045192,105290.0,105280.0,1.39463152]
[1750037627652,0.00045192,105290.0,105280.0,1.3851335]
[1750037628111,0.00045192,105290.0,105280.0,1.37563539]
[1750037628335,0.00045192,105290.0,105280.0,1.3851335]
[1750037628799,0.00045192,105290.0,105280.0,1.36613719]
[1750037629027,0.00045192,105290.0,105280.0,0.97753402]
[1750037629256,0.00045192,105290.0,105280.0,1.37563539]
[1750037629493,0.00045192,105290.0,105280.0,1.3851335]
[1750037630364,0.00045192,105290.0,105280.0,1.36613719]
[1750037630365,0.00045192,105290.0,105280.0,1.38513341]
[1750037630582,0.00045192,105290.0,105280.0,1.80223046]
[1750037631004,0.00045192,105290.0,105280.0,1.40412918]
[1750037631415,0.00045192,105290.0,105280.0,1.80223046]
[1750037632047,0.00045192,105290.0,105280.0,2.19223046]
[1750037632260,0.00045192,105290.0,105280.0,2.11618952]
[1750037632469,0.00045192,105290.0,105280.0,2.2603545]
[1750037632684,0.09795349,105330.0,105320.0,0.0321]
[1750037632896,0.09842705,105330.0,105320.0,0.52206805]
[1750037633105,0.09842705,105330.0,105320.0,0.71445903]
[1750037633318,0.09842718,105330.0,105320.0,0.71445903]
[1750037633740,0.09842717,105330.0,105320.0,0.71445903]
[1750037634165,0.09842715,105330.0,105320.0,0.71445903]
[1750037634599,0.01397523,105330.0,105320.0,0.71445903]
[1750037634813,0.01333631,105330.0,105320.0,0.71445903]
[1750037635036,0.0133366,105330.0,105320.0,0.71445903]
[1750037635325,0.01833675,105330.0,105320.0,0.71545903]
[1750037635540,0.00947354,105330.0,105320.0,0.71545903]
[1750037636182,0.00947354,105330.0,105320.0,0.72983988]
[1750037636854,0.00947354,105330.0,105320.0,0.72975988]
[1750037639518,0.01833715,105330.0,105320.0,0.72975988]
[1750037639722,0.00947354,105330.0,105320.0,0.72975988]
[1750037639934,0.01833716,105330.0,105320.0,0.72975988]
[1750037640157,0.00947354,105330.0,105320.0,0.72975988]
[1750037640371,0.01833712,105330.0,105320.0,0.72975988]
[1750037640602,0.00947354,105330.0,105320.0,0.56723988]
[1750037640816,0.00947354,105330.0,105320.0,0.72955988]
[1750037641466,0.00947354,105330.0,105320.0,1.35543601]
[1750037641708,0.00947354,105330.0,105320.0,1.76305732]
[1750037641917,0.00947354,105330.0,105320.0,1.36488655]
[1750037642156,0.00947354,105330.0,105320.0,1.20063972]
[1750037642602,0.00447354,105330.0,105320.0,1.19963972]
[1750037642815,0.00447354,105330.0,105320.0,1.20563972]
[1750037643071,0.00547354,105330.0,105320.0,1.20563972]
[1750037643688,0.00547354,105330.0,105320.0,0.74929037]
[1750037643894,0.00547354,105330.0,105320.0,0.75429037]
[1750037644686,0.00547354,105330.0,105320.0,0.75429074]
[1750037645550,0.00547354,105330.0,105320.0,0.71646922]
[1750037645760,0.00547354,105330.0,105320.0,0.75429212]
[1750037645969,0.00547354,105330.0,105320.0,0.85044134]
[1750037646403,0.00547354,105330.0,105320.0,1.21071972]
[1750037646841,0.00547354,105330.0,105320.0,1.41011186]
[1750037647053,0.00547354,105330.0,105320.0,1.22021459]
[1750037647265,0.00547354,105330.0,105320.0,0.81261844]
[1750037647472,0.00547354,105330.0,105320.0,1.21071972]
[1750037648121,0.00547354,105330.0,105320.0,1.22021459]
[1750037648334,0.00547354,105330.0,105320.0,1.21071972]
[1750037649489,0.00547354,105330.0,105320.0,1.00367972]
[1750037649973,0.00547354,105330.0,105320.0,1.21079972]
[1750037650191,0.00547354,105330.0,105320.0,1.22029459]
[1750037650428,0.00547354,105330.0,105320.0,1.16354798]
[1750037650911,0.00547354,105330.0,105320.0,1.15405311]
[1750037651148,0.00547354,105330.0,105320.0,1.35344543]
[1750037651391,0.00547354,105330.0,105320.0,1.78002988]
[1750037651599,0.00547354,105330.0,105320.0,1.85578469]
[1750037652252,0.00175909,105330.0,105320.0,1.95746988]
[1750037652466,0.00175909,105330.0,105320.0,2.29566469]
[1750037652681,0.00175909,105330.0,105320.0,2.21990988]
[1750037652895,0.00175909,105330.0,105320.0,1.49940161]
[1750037653106,0.00175909,105330.0,105320.0,2.29560417]
[1750037654578,0.00175909,105330.0,105320.0,2.13316417]
[1750037654988,0.00175909,105330.0,105320.0,2.29576417]
[1750037655408,0.00175909,105330.0,105320.0,2.13316417]
[1750037655621,0.00175909,105330.0,105320.0,2.29572417]
[1750037655842,0.00175909,105330.0,105320.0,2.13316417]
[1750037656052,0.00175909,105330.0,105320.0,2.29572417]
[1750037656260,0.00175909,105330.0,105320.0,2.13316417]
[1750037656671,0.00175909,105330.0,105320.0,2.29568417]
[1750037658277,0.00175909,105330.0,105320.0,2.13316417]
[1750037658482,0.00175909,105330.0,105320.0,2.29568417]
[1750037658655,0.00175909,105330.0,105320.0,2.13316417]
[1750037659284,0.00175909,105330.0,105320.0,2.21986988]
[1750037659688,0.00175909,105330.0,105320.0,1.19771875]
[1750037659890,0.00175909,105330.0,105320.0,1.89748887]
[1750037660327,0.00175909,105330.0,105320.0,2.21987006]
[1750037661085,0.00175909,105330.0,105320.0,2.21995006]
[1750037662286,0.00035024,105330.0,105320.0,2.31411504]
[1750037663102,0.02821012,105340.0,105330.0,0.65299061]
[1750037663380,0.02821012,105340.0,105330.0,1.43145957]
[1750037663381,0.02835213,105340.0,105330.0,1.43145957]
[1750037664703,0.02835213,105340.0,105330.0,1.44095354]
[1750037665063,0.02835213,105340.0,105330.0,1.43145957]
[1750037665269,0.02835213,105340.0,105330.0,1.43445957]
[1750037665911,0.02935213,105340.0,105330.0,1.43945957]
[1750037666316,0.02935213,105340.0,105330.0,1.44895354]
[1750037666522,0.02935213,105340.0,105330.0,1.47749054]
[1750037666715,0.02935213,105340.0,105330.0,1.46799657]
[1750037669113,0.02935213,105340.0,105330.0,1.46749657]
[1750037669246,0.00114201,105340.0,105330.0,1.47699054]
[1750037669673,0.00114201,105340.0,105330.0,1.46749657]
[1750037672833,0.00114201,105340.0,105330.0,1.06939529]
[1750037673110,0.00114201,105340.0,105330.0,1.51149657]
[1750037673394,0.00114201,105340.0,105330.0,1.4357239]
[1750037674797,0.00114201,105340.0,105330.0,1.44521787]
[1750037675048,0.00114201,105340.0,105330.0,1.4362239]
[1750037675518,0.00114201,105340.0,105330.0,1.64509099]
[1750037675732,0.00114201,105340.0,105330.0,1.58662958]
[1750037675965,0.00114201,105340.0,105330.0,1.5961231]
[1750037676433,0.00114201,105340.0,105330.0,1.60561653]
[1750037676660,0.00114201,105340.0,105330.0,1.7580431]
[1750037677162,0.00114201,105340.0,105330.0,1.76753599]
[1750037677337,0.00114201,105340.0,105330.0,1.75804265]
[1750037677648,0.00114201,105340.0,105330.0,1.60561599]
[1750037677897,0.00114201,105340.0,105330.0,1.76745599]
[1750037680533,0.00114201,105340.0,105330.0,1.81745599]
[1750037680762,0.00886842,105370.0,105360.0,0.01454085]
[1750037681044,0.00886842,105370.0,105360.0,0.62793677]
[1750037681475,0.02436842,105370.0,105360.0,0.72408599]
[1750037682133,0.02436842,105370.0,105360.0,0.62793677]
[1750037682353,0.02736842,105370.0,105360.0,0.62893677]
[1750037682603,0.4282697,105370.0,105360.0,0.45267592]
[1750037682824,0.4282697,105370.0,105360.0,0.61451592]
[1750037683461,0.03016842,105370.0,105360.0,0.61451592]
[1750037683688,0.03116842,105370.0,105360.0,0.51831416]
[1750037683934,0.4292697,105370.0,105360.0,0.59181167]
[1750037684142,0.03116842,105370.0,105360.0,0.59181167]
[1750037684571,0.03116842,105370.0,105360.0,0.42993167]
[1750037684792,0.4292697,105370.0,105360.0,0.51831416]
[1750037685001,0.03116842,105370.0,105360.0,0.51831416]
[1750037685214,0.4292697,105370.0,105360.0,0.51831416]
[1750037685433,0.4292697,105370.0,105360.0,0.55632563]
[1750037685654,0.4292697,105370.0,105360.0,0.06745226]
[1750037685655,3.15741818,105370.0,105360.0,0.06745226]
[1750037685869,3.15741818,105370.0,105360.0,0.001]
[1750037685870,3.68118417,105370.0,105360.0,0.001]
[1750037686311,3.28308289,105370.0,105360.0,0.001]
[1750037686558,3.29195002,105370.0,105360.0,0.001]
[1750037686811,3.32049206,105370.0,105360.0,0.001]
[1750037687038,3.32049201,105370.0,105360.0,0.001]
[1750037687239,3.28220194,105370.0,105360.0,0.001]
[1750037687679,3.29106885,105370.0,105360.0,0.001]
[1750037688070,3.29106908,105370.0,105360.0,0.001]
[1750037688532,3.28220194,105370.0,105360.0,0.001]
[1750037688745,3.30055869,105370.0,105360.0,0.001]
[1750037688964,3.28220194,105370.0,105360.0,0.001]
[1750037689187,3.89795704,105370.0,105360.0,0.001]
[1750037689404,3.94514287,105370.0,105360.0,0.001]
[1750037689630,3.68795294,105370.0,105360.0,0.001]
[1750037689849,2.84908372,105370.0,105360.0,0.001]
[1750037690070,0.3594,105350.0,105340.0,0.1624]
[1750037690706,0.75750128,105350.0,105340.0,0.1624]
[1750037691157,0.73810128,105350.0,105330.0,0.06645226]
[1750037691380,0.41610128,105340.0,105330.0,0.19132079]
[1750037691598,0.41610128,105340.0,105330.0,0.02848079]
[1750037691817,0.41610128,105340.0,105330.0,0.19128079]
[1750037692031,0.41610128,105340.0,105330.0,0.1628]
[1750037692520,0.41710128,105340.0,105330.0,0.1688]
[1750037692744,0.41710128,105340.0,105330.0,0.006]
[1750037692972,0.41710128,105340.0,105330.0,0.16872]
[1750037693421,0.41710128,105340.0,105330.0,0.006]
[1750037693882,0.41710128,105340.0,105330.0,0.008]
[1750037695057,0.41430128,105340.0,105330.0,0.008]
[1750037695291,0.41710128,105340.0,105330.0,0.008]
[1750037695506,0.49281141,105340.0,105330.0,0.008]
[1750037695735,2.76036628,105340.0,105330.0,0.008]
[1750037696467,2.52250277,105340.0,105330.0,0.008]
[1750037696713,2.89078604,105340.0,105330.0,0.008]
[1750037697189,2.9870278,105340.0,105330.0,0.008]
[1750037697424,2.99652005,105340.0,105330.0,0.006]
[1750037697647,2.99652014,105340.0,105330.0,0.006]
[1750037697887,0.0028,105330.0,105310.0,0.1624]
[1750037698103,2.74136628,105320.0,105310.0,0.00047354]
[1750037698328,0.39810128,105320.0,105310.0,0.00047354]
[1750037699426,0.39910128,105320.0,105310.0,0.00447354]
[1750037700151,0.001,105320.0,105310.0,0.00447354]
[1750037700385,0.39910128,105320.0,105310.0,0.00447354]
[1750037700827,0.001,105320.0,105310.0,0.00647354]
[1750037701272,0.01082455,105320.0,105310.0,0.00647354]
[1750037701487,0.001,105320.0,105310.0,0.00647354]
[1750037701929,0.40590128,105320.0,105310.0,0.00647354]
[1750037702149,0.44649141,105320.0,105310.0,0.00647354]
[1750037702620,3.62409945,105320.0,105310.0,0.00647354]
[1750037702858,3.65258226,105320.0,105310.0,0.00647354]
[1750037703080,3.72316841,105320.0,105310.0,0.00647354]
[1750037703304,3.71651849,105320.0,105310.0,0.00447354]
[1750037703520,3.73258865,105320.0,105310.0,0.00447354]
[1750037703731,3.7154443,105320.0,105310.0,0.00047354]
[1750037703998,3.7240935,105320.0,105310.0,0.00147354]
[1750037704215,3.70630563,105320.0,105310.0,0.00147354]
[1750037704435,3.70915137,105320.0,105310.0,0.00147354]
[1750037704684,3.71780085,105320.0,105310.0,0.00147354]
[1750037704935,3.71780091,105320.0,105310.0,0.00147354]